{"text_format":"1","workbook":"xlsx","n_sheets":8,"sheets":["1. Liga","Junioren_2. Liga","Jugend","Schüler A","Schüler B","Schüler C","Meldungen","gelb_rote Karten"],"not_rendered":{"charts":0,"images":0,"macros":0,"external_links":0,"defined_names":3,"comments":0,"pivot_tables":0},"unopened":[],"bounds":{"document_bytes":16777216,"sheet_cells":100000,"rows_first":2000,"rows_last":500,"rows_between":2000,"halvings":0,"cell_chars":16384,"cell_head_chars":4096},"cells_cut":0,"cells_raw":0,"read":"whole","date_system":"1900"}

{"sheet":"1. Liga","index":0,"n_rows":38,"n_cols":28,"rows_kept":38,"cut":false,"hidden":false,"merged":[[37,0,37,28],[1,1,1,6],[4,1,4,6],[5,1,5,6],[6,1,6,6],[32,0,32,6],[1,8,1,22],[2,9,2,22],[24,9,24,10],[24,11,24,12],[24,13,24,14],[24,15,24,16],[24,17,24,18],[35,0,35,6],[34,0,34,6],[32,9,32,22],[24,19,24,20],[26,9,26,28],[27,9,27,28],[29,8,29,22],[30,9,30,22],[30,23,30,24],[30,27,30,28],[4,9,4,22],[4,23,4,24],[4,27,4,28],[2,1,2,6],[5,23,5,24],[5,27,5,28],[5,9,5,22],[2,23,2,24],[2,27,2,28],[3,1,3,6],[3,9,3,22],[3,23,3,24],[3,27,3,28],[6,23,6,24],[6,27,6,28],[7,1,7,2],[7,3,7,6],[7,9,7,22],[7,23,7,24],[7,27,7,28],[6,9,6,22],[9,24,9,26],[10,25,10,26],[11,25,11,26],[12,25,12,26],[13,25,13,26],[14,25,14,26],[15,25,15,26],[17,9,17,10],[17,11,17,12],[17,13,17,14],[17,15,17,16],[17,17,17,18],[17,19,17,20],[31,9,31,22],[31,23,31,24],[31,27,31,28],[32,27,32,28],[33,0,33,6],[33,9,33,22],[33,23,33,24],[33,27,33,28],[32,23,32,24],[34,9,34,22],[34,23,34,24],[34,27,34,28],[35,9,35,22],[35,23,35,24],[35,27,35,28]]}
[]
["Bewerb:","Vorarlberger Meisterschaft 2015",null,null,null,null,null,null,"Manschaften"]
["Veranstalter:","VLRV Vorarlberg",null,null,null,null,null,null,"Höchst 1","Patrick Schnetzer /Markus Bröll"]
["Ausrichter:","RV Sulz",null,null,null,null,null,null,"Höchst 2","Simon König / Florian Fischer"]
["Spielort:","Volksschule Turnhalle",null,null,null,null,null,null,"Höchst 3","Fabian Bauer / Johannes Bauer"]
["Termin","Samstag 18. April",null,null,null,null,null,null,"Dornbirn 1","Lingg Martin / Türtscher Jürgen"]
["Beginn:","16:30 - 21:00 Uhr",null,null,null,null,null,null,"Dornbirn 2","Fontain Pascal / Köck Patrick"]
["Kategorie:","1. Liga",null,"Finalrunde",null,null,null,null,"Sulz / D'birn","Kevin Bachmann / Stefan Feursteinr "]
[]
[null,"Mannschaft","  ","Mannschaft",null,null,null,null,"Mannschaft",1,2,3,4,5,6,7,8,9,10,11,12,13,14,15,"Punkte"]
["Spiel 1","Höchst 1",":","Höchst 3",null,":",null,null,"Höchst 1"]
["Spiel 2","Dornbirn 1",":","Dornbirn 2",null,":",null,null,"Dornbirn 1"]
["Spiel 3","Höchst 2",":","Sulz / D'birn",null,":",null,null,"Höchst 2"]
["Spiel 4","Höchst 1",":","Dornbirn 2",null,":",null,null,"Sulz / D'birn"]
["Spiel 5","Höchst 2",":","Höchst 3",null,":",null,null,"Dornbirn 2"]
["Spiel 6","Dornbirn 1",":","Sulz / D'birn",null,":",null,null,"Höchst 3"]
["Spiel 7","Dornbirn 2",":","Höchst 3",null,":",null,null,null,"Team 1",null,"Team 2",null,"Team 3",null,"Team 4",null,"Team 5",null,"Team 6"]
["Spiel 8","Höchst 1",":","Sulz / D'birn",null,":",null,null,null,"Höch 1",null,"D'birn 1",null,"Höch 2",null,"Sulz/D'bi",null,"D'birn 2",null,"Höch 3"]
["Spiel 9","Dornbirn 1",":","Höchst 2",null,":",null,null,"1. Spiel"]
["Spiel 10","Sulz / D'birn",":","Dornbirn 2",null,":",null,null,"2. Spiel"]
["Spiel 11","Dornbirn 1",":","Höchst 3",null,":",null,null,"3. Spiel"]
["Spiel 12","Höchst 1",":","Höchst 2",null,":",null,null,"4. Spiel"]
["Spiel 13","Sulz / D'birn",":","Höchst 3",null,":",null,null,"5. Spiel"]
["Spiel 14","Höchst 2",":","Dornbirn 2",null,":",null,null,"Tore/Total"]
["Spiel 15","Höchst 1",":","Dornbirn 1",null,":",null,null,"Differenz"]
[]
[null,null,null,null,null,null,null,null,"Zeitnehmer"]
[null,null,null,null,null,null,null,null,"Kommisär"]
[]
[null,null,null,null,null,null,null,null,"Endstand ",null,null,null,null,null,null,null,null,null,null,null,null,null,null,"Pkte",null,"Tore",null,"Rang"]
[null,null,null,null,null,null,null,null,null,null,null,null,null,null,null,null,null,null,null,null,null,null,null,null,null,null,null,"1."]
["Vorkommnisse","Spielzeit 2 x 7 Minuten",null,null,null,null,null,null,null,null,null,null,null,null,null,null,null,null,null,null,null,null,null,null,null,null,null,"2."]
[null,null,null,null,null,null,null,null,null,null,null,null,null,null,null,null,null,null,null,null,null,null,null,null,null,null,null,"3."]
[null,null,null,null,null,null,null,null,null,null,null,null,null,null,null,null,null,null,null,null,null,null,null,null,null,null,null,"4."]
[null,null,null,null,null,null,null,null,null,null,null,null,null,null,null,null,null,null,null,null,null,null,null,null,null,null,null,"5."]
[null,null,null,null,null,null,null,null,null,null,null,null,null,null,null,null,null,null,null,null,null,null,null,null,null,null,null,"6."]
[]
["2015 gibt es keine Auf- Abstiegsrunde, es wird nur die Finalrunde gespielt"]

{"sheet":"Junioren_2. Liga","index":1,"n_rows":113,"n_cols":28,"rows_kept":113,"cut":false,"hidden":false,"merged":[[112,0,112,28],[42,23,42,24],[42,27,42,28],[43,23,43,24],[43,27,43,28],[44,23,44,24],[44,27,44,28],[45,23,45,24],[45,27,45,28],[81,23,81,24],[81,27,81,28],[82,23,82,24],[82,27,82,28],[83,23,83,24],[83,27,83,28],[84,23,84,24],[109,0,109,6],[109,9,109,22],[109,23,109,24],[109,27,109,28],[111,0,111,28],[107,0,107,6],[107,9,107,22],[107,23,107,24],[107,27,107,28],[108,0,108,6],[108,9,108,22],[108,23,108,24],[108,27,108,28],[101,9,101,28],[102,9,102,28],[106,9,106,22],[106,23,106,24],[106,27,106,28],[93,9,93,10],[93,11,93,12],[93,13,93,14],[93,15,93,16],[98,9,98,10],[98,11,98,12],[98,13,98,14],[98,15,98,16],[86,15,86,16],[86,18,90,27],[87,15,87,16],[88,15,88,16],[89,15,89,16],[90,15,90,16],[73,0,73,28],[80,1,80,6],[80,7,92,7],[81,1,81,6],[81,9,81,22],[82,1,82,6],[82,9,82,22],[83,1,83,6],[83,9,83,22],[84,1,84,6],[84,9,84,22],[85,1,85,6],[85,8,85,28],[86,1,86,2],[86,3,86,6],[84,27,84,28],[70,0,70,6],[70,9,70,22],[70,23,70,24],[70,27,70,28],[72,0,72,28],[68,0,68,6],[68,9,68,22],[68,23,68,24],[68,27,68,28],[69,0,69,6],[69,9,69,22],[69,23,69,24],[69,27,69,28],[62,9,62,28],[63,9,63,28],[67,9,67,22],[67,23,67,24],[67,27,67,28],[54,9,54,10],[54,11,54,12],[54,13,54,14],[54,15,54,16],[59,9,59,10],[59,11,59,12],[59,13,59,14],[59,15,59,16],[47,18,51,27],[48,15,48,16],[49,15,49,16],[50,15,50,16],[51,15,51,16],[41,1,41,6],[41,7,53,7],[42,1,42,6],[42,9,42,22],[43,1,43,6],[43,9,43,22],[44,1,44,6],[44,9,44,22],[45,1,45,6],[45,9,45,22],[46,1,46,6],[46,8,46,28],[47,1,47,2],[47,3,47,6],[47,15,47,16],[33,0,33,28],[34,0,34,28],[28,27,28,28],[29,0,29,6],[29,23,29,24],[29,27,29,28],[30,0,30,6],[30,23,30,24],[30,27,30,28],[31,0,31,6],[31,23,31,24],[31,27,31,28],[28,9,28,22],[29,9,29,22],[30,9,30,22],[31,9,31,22],[3,9,3,22],[5,9,5,22],[3,1,3,6],[2,7,14,7],[2,8,2,22],[6,1,6,6],[6,9,6,22],[4,9,4,22],[2,1,2,6],[4,1,4,6],[5,1,5,6],[7,1,7,6],[7,8,7,28],[8,1,8,2],[8,3,8,6],[8,15,8,16],[23,9,23,28],[24,9,24,28],[28,23,28,24],[8,18,12,27],[9,15,9,16],[10,15,10,16],[11,15,11,16],[12,15,12,16],[15,9,15,10],[15,11,15,12],[15,13,15,14],[15,15,15,16],[20,9,20,10],[20,11,20,12],[20,13,20,14],[20,15,20,16]]}
[]
[]
["Bewerb:","Vorarlberger Meisterschaft 2015",null,null,null,null,null,null,"Mannschaften"]
["Veranstalter:","VLRV Vorarlberg",null,null,null,null,null,null,"Sulz 1","Moritz und Tobias Vogt"]
["Ausrichter:","RC Höchst",null,null,null,null,null,null,"Sulz 2","Jonas Hron / Mario Frick"]
["Spielort:","Rheinauhalle",null,null,null,null,null,null,"Dornbirn 1","Simon und Benjamin Buchhäusl"]
["Termin","Samstag 14. März",null,null,null,null,null,null,"Dornbirn 2","Tobias Gawlik / Robert Rutkowski "]
["Beginn:","15:00 - 16:30 Uhr"]
["Kategorie:","Junior./2. Liga",null,"1. Runde",null,null,null,null,"Mannschaft",1,2,3,4,5,6,"Pkt."]
[null,null,null,null,null,null,null,null,"Dornbirn 1",3,null,1,null,null,3,7]
[" ","Mannschaft","  ","Mannschaft",null,null,null,null,"Sulz 1",null,3,null,0,null,0,3]
["Spiel 1","Dornbirn 1",":","Dornbirn 2",5,":",1,null,"Sulz 2",null,0,1,null,0,null,1]
["Spiel 2","Sulz 1",":","Sulz 2",4,":",0,null,"Dornbirn 2",0,null,null,3,3,null,6]
["Spiel 3","Dornbirn 1",":","Sulz 2",3,":",3]
["Spiel 4","Sulz 1",":","Dornbirn 2",3,":",4,null,null,"Team 1",null,"Team 2",null,"Team 3",null,"Team 4"]
["Spiel 5","Sulz 2",":","Dornbirn 2",0,":",7,null,null,"D'birn 1",null,"Sulz 1",null,"Sulz 2",null,"D'birn 2"]
["Spiel 6","Dornbirn 1",":","Sulz 1",5,":",2,null,"1. Spiel",5,1,4,0,0,4,1,5]
[null,null,null,null,null,null,null,null,"2. Spiel",3,3,3,4,3,3,4,3]
[null,null,null,null,null,null,null,null,"3. Spiel",5,2,2,5,0,7,7,0]
[null,null,null,null,null,null,null,null,"Tore/Total",13,6,9,9,3,14,12,8]
[null,null,null,null,null,null,null,null,"Differenz",7,null,0,null,-11,null,4]
[]
[]
[null,null,null,null,null,null,null,null,"Zeitnehmer","Johann Thaler, RC Höchst"]
[null,null,null,null,null,null,null,null,"Kommisär","Sabian Bauer, Simon König, RC Höchst"]
[]
[]
[null,null,null,null,null,null,null,null,"Endstand nach der 1. Runde",null,null,null,null,null,null,null,null,null,null,null,null,null,null,"Pkte",null,"Tore",null,"Rang"]
["Vorkommnisse","Spielzeit 2 x 6 Minuten",null,null,null,null,null,null,"Dornbirn 1","Simon und Benjamin Buchhäusl",null,null,null,null,null,null,null,null,null,null,null,null,null,7,null,13,6,1]
[null,null,null,null,null,null,null,null,"Dornbirn 2","Tobias Gawlik / Robert Rutkowski ",null,null,null,null,null,null,null,null,null,null,null,null,null,6,null,12,8,2]
[null,null,null,null,null,null,null,null,"Sulz 1","Moritz und Tobias Vogt",null,null,null,null,null,null,null,null,null,null,null,null,null,3,null,9,9,3]
[null,null,null,null,null,null,null,null,"Sulz 2","Jonas Hron / Mario Frick",null,null,null,null,null,null,null,null,null,null,null,null,null,1,null,3,14,4]
[]
["Sollte eine Mannschaft ausfallen wird eine Doppelrunde gespielt, wobei nur die 1. Runde in die Wertung kommt!"]
["2015 gibt es keine Auf- Abstiegsrunde, es werden 3 Runden ausgespielt"]
[]
[]
[]
[]
[]
[]
["Bewerb:","Vorarlberger Meisterschaft 2015",null,null,null,null,null,null,"Endstand nach der 1. Runde",null,null,null,null,null,null,null,null,null,null,null,null,null,null,"Pkte",null,"Tore",null,"Rang"]
["Veranstalter:","VLRV Vorarlberg",null,null,null,null,null,null,"Dornbirn 1","Simon und Benjamin Buchhäusl",null,null,null,null,null,null,null,null,null,null,null,null,null,7,null,13,6,1]
["Ausrichter:","RV Hohenems",null,null,null,null,null,null,"Dornbirn 2","Tobias Gawlik / Robert Rutkowski ",null,null,null,null,null,null,null,null,null,null,null,null,null,6,null,12,8,2]
["Spielort:","Radsporthalle",null,null,null,null,null,null,"Sulz 1","Moritz und Tobias Vogt",null,null,null,null,null,null,null,null,null,null,null,null,null,3,null,9,9,3]
["Termin","Samstag 11. April",null,null,null,null,null,null,"Sulz 2","Jonas Hron / Mario Frick",null,null,null,null,null,null,null,null,null,null,null,null,null,1,null,3,14,4]
["Beginn:","17:15 - 19:00 Uhr"]
["Kategorie:","Junior./2. Liga",null,"2. Runde",null,null,null,null,"Mannschaft",1,2,3,4,5,6,"Pkt."]
[null,null,null,null,null,null,null,null,"Dornbirn 1",1,null,3,null,null,1,{"$f":"SUM(J49:O49)","v":5}]
[" ","Mannschaft","  ","Mannschaft",null,null,null,null,"Sulz 1",null,1,null,0,null,1,{"$f":"SUM(J50:O50)","v":2}]
["Spiel 1","Dornbirn 1",":","Dornbirn 2",3,":",3,null,"Sulz 2",null,1,0,null,0,null,1]
["Spiel 2","Sulz 1",":","Sulz 2",3,":",3,null,"Dornbirn 2",1,null,null,3,3,null,7]
["Spiel 3","Dornbirn 1",":","Sulz 2",6,":",1]
["Spiel 4","Sulz 1",":","Dornbirn 2",2,":",7,null,null,"Team 1",null,"Team 2",null,"Team 3",null,"Team 4"]
["Spiel 5","Sulz 2",":","Dornbirn 2",0,":",6,null,null,"D'birn 1",null,"Sulz 1",null,"Sulz 2",null,"D'birn 2"]
["Spiel 6","Dornbirn 1",":","Sulz 1",5,":",5,null,"1. Spiel",{"$f":"E51","v":3},{"$f":"G51","v":3},{"$f":"E52","v":3},{"$f":"G52","v":3},{"$f":"G52","v":3},{"$f":"E52","v":3},{"$f":"G51","v":3},{"$f":"E51","v":3}]
[null,null,null,null,null,null,null,null,"2. Spiel",{"$f":"E53","v":6},{"$f":"G53","v":1},{"$f":"E54","v":2},{"$f":"G54","v":7},{"$f":"G53","v":1},{"$f":"E53","v":6},{"$f":"G54","v":7},{"$f":"E54","v":2}]
[null,null,null,null,null,null,null,null,"3. Spiel",{"$f":"E56","v":5},{"$f":"G56","v":5},{"$f":"G56","v":5},{"$f":"E56","v":5},{"$f":"E55","v":0},{"$f":"G55","v":6},{"$f":"G55","v":6},{"$f":"E55","v":0}]
[null,null,null,null,null,null,null,null,"Tore/Total",{"$f":"SUM(J56:J58)","v":14},{"$f":"SUM(K56:K58)","v":9},10,15,4,15,16,5,null,"Kontrollsumme"]
[null,null,null,null,null,null,null,null,"Differenz",{"$f":"J59-K59","v":5},null,{"$f":"L59-M59","v":-5},null,{"$f":"N59-O59","v":-11},null,{"$f":"P59-Q59","v":11},null,null,{"$f":"SUM(J60:Q60)","v":0}]
[]
[]
[null,null,null,null,null,null,null,null,"Zeitnehmer","Philipp Feurstein"]
[null,null,null,null,null,null,null,null,"Kommisär","Herbert Benzer, Gernot Fontain"]
[]
[]
[null,null,null,null,null,null,null,null,"Endstand nach der 2. Runde",null,null,null,null,null,null,null,null,null,null,null,null,null,null,"Pkte",null,"Tore",null,"Rang"]
["Vorkommnisse","Spielzeit 2 x 6 Minuten",null,null,null,null,null,null,"Dornbirn 1","Simon und Benjamin Buchhäusl",null,null,null,null,null,null,null,null,null,null,null,null,null,{"$f":"X43+P49","v":12},null,{"$f":"Z43+J59","v":27},{"$f":"AA43+K59","v":15},2]
[null,null,null,null,null,null,null,null,"Dornbirn 2","Tobias Gawlik / Robert Rutkowski ",null,null,null,null,null,null,null,null,null,null,null,null,null,{"$f":"X44+P52","v":13},null,{"$f":"Z44+P59","v":28},{"$f":"AA44+Q59","v":13},1]
[null,null,null,null,null,null,null,null,"Sulz 1","Moritz und Tobias Vogt",null,null,null,null,null,null,null,null,null,null,null,null,null,{"$f":"X45+P50","v":5},null,{"$f":"Z45+L59","v":19},{"$f":"AA45+M59","v":24},3]
[null,null,null,null,null,null,null,null,"Sulz 2","Jonas Hron / Mario Frick",null,null,null,null,null,null,null,null,null,null,null,null,null,{"$f":"X46+P51","v":2},null,{"$f":"Z46+N59","v":7},{"$f":"AA46+O59","v":29},4]
[]
["Sollte eine Mannschaft ausfallen wird eine Doppelrunde gespielt, wobei nur die 1. Runde in die Wertung kommt!"]
["2015 gibt es keine Auf- Abstiegsrunde, es werden 3 Runden ausgespielt"]
[]
[]
[]
[]
[]
[]
["Bewerb:","Vorarlberger Meisterschaft 2015",null,null,null,null,null,null,"Endstand nach der 2. Runde",null,null,null,null,null,null,null,null,null,null,null,null,null,null,"Pkte",null,"Tore",null,"Rang"]
["Veranstalter:","VLRV Vorarlberg",null,null,null,null,null,null,null,null,null,null,null,null,null,null,null,null,null,null,null,null,null,null,null,null,null,1]
["Ausrichter:","RV Sulz",null,null,null,null,null,null,null,null,null,null,null,null,null,null,null,null,null,null,null,null,null,null,null,null,null,2]
["Spielort:","Volksschule Turnhalle",null,null,null,null,null,null,null,null,null,null,null,null,null,null,null,null,null,null,null,null,null,null,null,null,null,3]
["Termin","Freitag 17. April",null,null,null,null,null,null,null,null,null,null,null,null,null,null,null,null,null,null,null,null,null,null,null,null,null,4]
["Beginn:","19:00 - 20:45 Uhr"]
["Kategorie:","Junior./2. Liga",null,"3. Runde",null,null,null,null,"Mannschaft",1,2,3,4,5,6,"Pkt."]
[null,null,null,null,null,null,null,null,"Dornbirn 1"]
[" ","Mannschaft","  ","Mannschaft",null,null,null,null,"Sulz 1"]
["Spiel 1","Dornbirn 1",":","Dornbirn 2",null,":",null,null,"Sulz 2"]
["Spiel 2","Sulz 1",":","Sulz 2",null,":",null,null,"Dornbirn 2"]
["Spiel 3","Dornbirn 1",":","Sulz 2",null,":"]
["Spiel 4","Sulz 1",":","Dornbirn 2",null,":",null,null,null,"Team 1",null,"Team 2",null,"Team 3",null,"Team 4"]
["Spiel 5","Sulz 2",":","Dornbirn 2",null,":",null,null,null,"D'birn 1",null,"Sulz 1",null,"Sulz 2",null,"D'birn 2"]
["Spiel 6","Dornbirn 1",":","Sulz 1",null,":",null,null,"1. Spiel"]
[null,null,null,null,null,null,null,null,"2. Spiel"]
[null,null,null,null,null,null,null,null,"3. Spiel"]
[null,null,null,null,null,null,null,null,"Tore/Total"]
[null,null,null,null,null,null,null,null,"Differenz"]
[]
[]
[null,null,null,null,null,null,null,null,"Zeitnehmer"]
[null,null,null,null,null,null,null,null,"Kommisär"]
[]
[]
[null,null,null,null,null,null,null,null,"Endstand nach der 3. Runde",null,null,null,null,null,null,null,null,null,null,null,null,null,null,"Pkte",null,"Tore",null,"Rang"]
["Vorkommnisse","Spielzeit 2 x 6 Minuten",null,null,null,null,null,null,null,null,null,null,null,null,null,null,null,null,null,null,null,null,null,null,null,null,null,1]
[null,null,null,null,null,null,null,null,null,null,null,null,null,null,null,null,null,null,null,null,null,null,null,null,null,null,null,2]
[null,null,null,null,null,null,null,null,null,null,null,null,null,null,null,null,null,null,null,null,null,null,null,null,null,null,null,3]
[null,null,null,null,null,null,null,null,null,null,null,null,null,null,null,null,null,null,null,null,null,null,null,null,null,null,null,4]
[]
["Sollte eine Mannschaft ausfallen wird eine Doppelrunde gespielt, wobei nur die 1. Runde in die Wertung kommt!"]
["2015 gibt es keine Auf- Abstiegsrunde, es werden 3 Runden ausgespielt"]

{"sheet":"Jugend","index":2,"n_rows":112,"n_cols":28,"rows_kept":112,"cut":false,"hidden":false,"merged":[[83,23,83,24],[83,27,83,28],[84,23,84,24],[84,27,84,28],[45,23,45,24],[45,27,45,28],[81,23,81,24],[81,27,81,28],[82,23,82,24],[82,27,82,28],[62,9,62,28],[63,9,63,28],[67,9,67,22],[67,23,67,24],[67,27,67,28],[54,9,54,10],[54,11,54,12],[54,13,54,14],[54,15,54,16],[59,9,59,10],[59,11,59,12],[59,13,59,14],[59,15,59,16],[42,23,42,24],[42,27,42,28],[43,23,43,24],[43,27,43,28],[44,23,44,24],[44,27,44,28],[80,1,80,6],[80,7,92,7],[81,1,81,6],[81,9,81,22],[82,1,82,6],[82,9,82,22],[83,1,83,6],[83,9,83,22],[84,1,84,6],[84,9,84,22],[85,1,85,6],[85,8,85,28],[86,1,86,2],[86,3,86,6],[86,15,86,16],[86,18,90,27],[87,15,87,16],[88,15,88,16],[43,1,43,6],[43,9,43,22],[44,1,44,6],[44,9,44,22],[45,1,45,6],[45,9,45,22],[46,1,46,6],[46,8,46,28],[47,1,47,2],[47,3,47,6],[47,15,47,16],[47,18,51,27],[48,15,48,16],[49,15,49,16],[50,15,50,16],[51,15,51,16],[109,0,109,6],[109,9,109,22],[109,23,109,24],[109,27,109,28],[111,0,111,28],[107,0,107,6],[107,9,107,22],[107,23,107,24],[107,27,107,28],[108,0,108,6],[108,9,108,22],[108,23,108,24],[108,27,108,28],[101,9,101,28],[102,9,102,28],[106,9,106,22],[106,23,106,24],[106,27,106,28],[93,9,93,10],[93,11,93,12],[93,13,93,14],[93,15,93,16],[98,9,98,10],[98,11,98,12],[98,13,98,14],[98,15,98,16],[33,0,33,28],[30,23,30,24],[30,27,30,28],[31,23,31,24],[31,27,31,28],[89,15,89,16],[90,15,90,16],[70,0,70,6],[70,9,70,22],[70,23,70,24],[70,27,70,28],[72,0,72,28],[68,0,68,6],[68,9,68,22],[68,23,68,24],[68,27,68,28],[69,0,69,6],[69,9,69,22],[69,23,69,24],[69,27,69,28],[41,1,41,6],[41,7,53,7],[42,1,42,6],[42,9,42,22],[15,9,15,10],[15,11,15,12],[15,13,15,14],[15,15,15,16],[29,0,29,6],[29,23,29,24],[29,27,29,28],[30,0,30,6],[31,0,31,6],[29,9,29,22],[30,9,30,22],[31,9,31,22],[28,23,28,24],[28,27,28,28],[20,9,20,10],[20,11,20,12],[20,13,20,14],[20,15,20,16],[23,9,23,28],[24,9,24,28],[28,9,28,22],[2,1,2,6],[3,1,3,6],[3,9,3,22],[5,1,5,6],[2,7,14,7],[2,8,2,22],[7,8,7,28],[8,1,8,2],[8,3,8,6],[7,1,7,6],[6,1,6,6],[6,9,6,22],[4,1,4,6],[4,9,4,22],[5,9,5,22],[8,15,8,16],[8,18,12,27],[9,15,9,16],[10,15,10,16],[11,15,11,16],[12,15,12,16]]}
[]
[]
["Bewerb:","Vorarlberger Meisterschaft 2015",null,null,null,null,null,null,"Mannschaften"]
["Veranstalter:","VLRV Vorarlberg",null,null,null,null,null,null,"Dornbirn 1","Maximilian Schwendinger / Bastian Arnoldi"]
["Ausrichter:","RC Höchst",null,null,null,null,null,null,"Höchst 1","Sven Hämmerle / Pascal Rüf"]
["Spielort:","Rheinauhalle",null,null,null,null,null,null,"Dornbirn 2","Benedikt Urbanz / Robert Gollob"]
["Termin","Samstag 14. März",null,null,null,null,null,null,"Dornbirn 3","Marc Wiesbauer / Hannes Kohler"]
["Beginn:","15:00 - 16:30 Uhr"]
["Kategorie:","Jugend",null,"1. Runde",null,null,null,null,"Mannschaft",1,2,3,4,5,6,"Pkt."]
[null,null,null,null,null,null,null,null,"Dornbirn 1",3,null,3,null,null,3,9]
[" ","Mannschaft","  ","Mannschaft",null,null,null,null,"Höchst 1",null,3,null,3,null,0,6]
["Spiel 1","Dornbirn 1",":","Dornbirn 3",6,":",1,null,"Dornbirn 2",null,0,0,null,3,null,3]
["Spiel 2","Höchst 1",":","Dornbirn 2",4,":",1,null,"Dornbirn 3",0,null,null,0,0,null,0]
["Spiel 3","Dornbirn 1",":","Dornbirn 2",9,":",1]
["Spiel 4","Höchst 1",":","Dornbirn 3",3,":",0,null,null,"Team 1",null,"Team 2",null,"Team 3",null,"Team 4"]
["Spiel 5","Dornbirn 2",":","Dornbirn 3",5,":",4,null,null,"D'birn 1",null,"Höch 1",null,"D'birn 2",null,"D'birn 3"]
["Spiel 6","Dornbirn 1",":","Höchst 1",5,":",1,null,"1. Spiel",6,1,4,1,1,4,1,6]
[null,null,null,null,null,null,null,null,"2. Spiel",9,1,3,0,1,9,0,3]
[null,null,null,null,null,null,null,null,"3. Spiel",5,1,1,5,5,4,4,5]
[null,null,null,null,null,null,null,null,"Tore/Total",20,3,8,6,7,17,5,14]
[null,null,null,null,null,null,null,null,"Differenz",17,null,2,null,-10,null,-9]
[]
[]
[null,null,null,null,null,null,null,null,"Zeitnehmer","Johann Thaler, RC Höchst"]
[null,null,null,null,null,null,null,null,"Kommisär","Martin Maccani, Fabian Bauer, RC Höchst"]
[]
[]
[null,null,null,null,null,null,null,null,"Endstand nach der 1. Runde",null,null,null,null,null,null,null,null,null,null,null,null,null,null,"Pkte",null,"Tore",null,"Rang"]
["Vorkommnisse","Spielzeit 2 x 5 Minuten",null,null,null,null,null,null,"Dornbirn 1","Maximilian Schwendinger / Bastian Arnoldi",null,null,null,null,null,null,null,null,null,null,null,null,null,9,null,20,3,1]
[null,null,null,null,null,null,null,null,"Höchst 1","Sven Hämmerle / Pascal Rüf",null,null,null,null,null,null,null,null,null,null,null,null,null,6,null,8,6,2]
[null,null,null,null,null,null,null,null,"Dornbirn 2","Benedikt Urbanz / Robert Gollob",null,null,null,null,null,null,null,null,null,null,null,null,null,3,null,7,17,3]
[null,null,null,null,null,null,null,null,"Dornbirn 3","Marc Wiesbauer / Hannes Kohler",null,null,null,null,null,null,null,null,null,null,null,null,null,0,null,5,14,4]
[]
["Sollte eine Mannschaft ausfallen wird eine Doppelrunde gespielt, wobei nur die 1. Runde in die Wertung kommt!"]
[]
[]
[]
[]
[]
[]
[]
["Bewerb:","Vorarlberger Meisterschaft 2015",null,null,null,null,null,null,"Endstand nach der 1. Runde",null,null,null,null,null,null,null,null,null,null,null,null,null,null,"Pkte",null,"Tore",null,"Rang"]
["Veranstalter:","VLRV Vorarlberg",null,null,null,null,null,null,"Dornbirn 1","Maximilian Schwendinger / Bastian Arnoldi",null,null,null,null,null,null,null,null,null,null,null,null,null,9,null,20,3,1]
["Ausrichter:","RV Hohenems",null,null,null,null,null,null,"Höchst 1","Sven Hämmerle / Pascal Rüf",null,null,null,null,null,null,null,null,null,null,null,null,null,6,null,8,6,2]
["Spielort:","Radsporthalle",null,null,null,null,null,null,"Dornbirn 2","Benedikt Urbanz / Robert Gollob",null,null,null,null,null,null,null,null,null,null,null,null,null,3,null,7,17,3]
["Termin","Samstag 11. April",null,null,null,null,null,null,"Dornbirn 3","Marc Wiesbauer / Hannes Kohler",null,null,null,null,null,null,null,null,null,null,null,null,null,0,null,5,14,4]
["Beginn:","15:15 - 17:00 Uhr"]
["Kategorie:","Jugend",null,"2. Runde",null,null,null,null,"Mannschaft",1,2,3,4,5,6,"Pkt."]
[null,null,null,null,null,null,null,null,"Dornbirn 1",3,null,3,null,null,3,{"$f":"SUM(J49:O49)","v":9}]
[" ","Mannschaft","  ","Mannschaft",null,null,null,null,"Höchst 1",null,0,null,0,null,0,{"$f":"SUM(J50:O50)","v":0}]
["Spiel 1","Dornbirn 1",":","Dornbirn 3",6,":",0,null,"Dornbirn 2",null,3,0,null,3,null,6]
["Spiel 2","Höchst 1",":","Dornbirn 2",0,":",5,null,"Dornbirn 3",0,null,null,3,0,null,3]
["Spiel 3","Dornbirn 1",":","Dornbirn 2",5,":",0]
["Spiel 4","Höchst 1",":","Dornbirn 3",0,":",5,null,null,"Team 1",null,"Team 2",null,"Team 3",null,"Team 4"]
["Spiel 5","Dornbirn 2",":","Dornbirn 3",7,":",0,null,null,"D'birn 1",null,"Höch 1",null,"D'birn 2",null,"D'birn 3"]
["Spiel 6","Dornbirn 1",":","Höchst 1",5,":",0,null,"1. Spiel",{"$f":"E51","v":6},{"$f":"G51","v":0},{"$f":"E52","v":0},{"$f":"G52","v":5},{"$f":"G52","v":5},{"$f":"E52","v":0},{"$f":"G51","v":0},{"$f":"E51","v":6}]
["Spiel 1","Dornbirn 1",":","Dornbirn 3",6,null,0,null,"2. Spiel",{"$f":"E53","v":5},{"$f":"G53","v":0},{"$f":"E54","v":0},{"$f":"G54","v":5},{"$f":"G53","v":0},{"$f":"E53","v":5},{"$f":"G54","v":5},{"$f":"E54","v":0}]
["Spiel 3","Dornbirn 1",":","Dornbirn 2",6,null,1,null,"3. Spiel",{"$f":"E56","v":5},{"$f":"G56","v":0},{"$f":"G56","v":0},{"$f":"E56","v":5},{"$f":"E55","v":7},{"$f":"G55","v":0},{"$f":"G55","v":0},{"$f":"E55","v":7}]
["Spiel 5","Dornbirn 2",":","Dornbirn 3",7,null,0,null,"Tore/Total",{"$f":"SUM(J56:J58)","v":16},{"$f":"SUM(K56:K58)","v":0},0,15,12,5,5,13,null,null,"Kontrollsumme"]
[null,null,null,null,null,null,null,null,"Differenz",{"$f":"J59-K59","v":16},null,{"$f":"L59-M59","v":-15},null,{"$f":"N59-O59","v":7},null,{"$f":"P59-Q59","v":-8},null,null,null,{"$f":"SUM(J60:Q60)","v":0}]
[]
[]
[null,null,null,null,null,null,null,null,"Zeitnehmer","Philipp Feurstein"]
[null,null,null,null,null,null,null,null,"Kommisär","Simon und Benjamin Buchhäusl"]
[]
[]
[null,null,null,null,null,null,null,null,"Endstand nach der 2. Runde",null,null,null,null,null,null,null,null,null,null,null,null,null,null,"Pkte",null,"Tore",null,"Rang"]
["Vorkommnisse","Spielzeit 2 x 5 Minuten",null,null,null,null,null,null,"Dornbirn 1","Maximilian Schwendinger / Bastian Arnoldi",null,null,null,null,null,null,null,null,null,null,null,null,null,{"$f":"X43+P49","v":18},null,{"$f":"Z43+J59","v":36},{"$f":"AA43+K59","v":3},1]
["Höchst 1 fällt in dieser Runde aus, alle Spiele mit 0:5",null,null,null,null,null,null,null,"Höchst 1","Sven Hämmerle / Pascal Rüf",null,null,null,null,null,null,null,null,null,null,null,null,null,{"$f":"X44+P50","v":6},null,{"$f":"Z44+L59","v":8},{"$f":"AA44+M59","v":21},3]
["Dornbirn 2: statt Robert Gollob spielt Philipp Schwendinger",null,null,null,null,null,null,null,"Dornbirn 2","Benedikt Urbanz / Robert Gollob",null,null,null,null,null,null,null,null,null,null,null,null,null,9,null,{"$f":"Z45+N59","v":19},{"$f":"AA45+O59","v":22},2]
[null,null,null,null,null,null,null,null,"Dornbirn 3","Marc Wiesbauer / Hannes Kohler",null,null,null,null,null,null,null,null,null,null,null,null,null,3,null,{"$f":"Z46+P59","v":10},{"$f":"AA46+Q59","v":27},4]
[]
["Sollte eine Mannschaft ausfallen wird eine Doppelrunde gespielt, wobei nur die 1. Runde in die Wertung kommt!"]
[]
[]
[]
[]
[]
[]
[]
["Bewerb:","Vorarlberger Meisterschaft 2015",null,null,null,null,null,null,"Endstand nach der 2. Runde",null,null,null,null,null,null,null,null,null,null,null,null,null,null,"Pkte",null,"Tore",null,"Rang"]
["Veranstalter:","VLRV Vorarlberg",null,null,null,null,null,null,"Dornbirn 1","Maximilian Schwendinger / Bastian Arnoldi",null,null,null,null,null,null,null,null,null,null,null,null,null,{"$f":"X68","v":18},null,{"$f":"Z68","v":36},{"$f":"AA68","v":3},1]
["Ausrichter:","RV Sulz",null,null,null,null,null,null,"Dornbirn 2","Benedikt Urbanz / Robert Gollob",null,null,null,null,null,null,null,null,null,null,null,null,null,{"$f":"X70","v":9},null,{"$f":"Z70","v":19},{"$f":"AA70","v":22},2]
["Spielort:","Volksschule Turnhalle",null,null,null,null,null,null,"Höchst 1","Sven Hämmerle / Pascal Rüf",null,null,null,null,null,null,null,null,null,null,null,null,null,{"$f":"X69","v":6},null,{"$f":"Z69","v":8},{"$f":"AA69","v":21},3]
["Termin","Samstag 18. April",null,null,null,null,null,null,"Dornbirn 3","Marc Wiesbauer / Hannes Kohler",null,null,null,null,null,null,null,null,null,null,null,null,null,{"$f":"X71","v":3},null,{"$f":"Z71","v":10},{"$f":"AA71","v":27},4]
["Beginn:","14:30 - 15:45 Uhr"]
["Kategorie:","Jugend",null,"3. Runde",null,null,null,null,"Mannschaft",1,2,3,4,5,6,"Pkt."]
[null,null,null,null,null,null,null,null,"Dornbirn 1"]
[" ","Mannschaft","  ","Mannschaft",null,null,null,null,"Höchst 1"]
["Spiel 1","Dornbirn 1",":","Dornbirn 3",null,":",null,null,"Dornbirn 2"]
["Spiel 2","Höchst 1",":","Dornbirn 2",null,":",null,null,"Dornbirn 3"]
["Spiel 3","Dornbirn 1",":","Dornbirn 2",null,":"]
["Spiel 4","Höchst 1",":","Dornbirn 3",null,":",null,null,null,"Team 1",null,"Team 2",null,"Team 3",null,"Team 4"]
["Spiel 5","Dornbirn 2",":","Dornbirn 3",null,":",null,null,null,"D'birn 1",null,"Höch 1",null,"D'birn 2",null,"D'birn 3"]
["Spiel 6","Dornbirn 1",":","Höchst 1",null,":",null,null,"1. Spiel"]
[null,null,null,null,null,null,null,null,"2. Spiel"]
[null,null,null,null,null,null,null,null,"3. Spiel"]
[null,null,null,null,null,null,null,null,"Tore/Total"]
[null,null,null,null,null,null,null,null,"Differenz"]
[]
[]
[null,null,null,null,null,null,null,null,"Zeitnehmer"]
[null,null,null,null,null,null,null,null,"Kommisär"]
[]
[]
[null,null,null,null,null,null,null,null,"Endstand nach der 3. Runde",null,null,null,null,null,null,null,null,null,null,null,null,null,null,"Pkte",null,"Tore",null,"Rang"]
["Vorkommnisse","Spielzeit 2 x 5 Minuten",null,null,null,null,null,null,null,null,null,null,null,null,null,null,null,null,null,null,null,null,null,null,null,null,null,1]
[null,null,null,null,null,null,null,null,null,null,null,null,null,null,null,null,null,null,null,null,null,null,null,null,null,null,null,2]
[null,null,null,null,null,null,null,null,null,null,null,null,null,null,null,null,null,null,null,null,null,null,null,null,null,null,null,3]
[null,null,null,null,null,null,null,null,null,null,null,null,null,null,null,null,null,null,null,null,null,null,null,null,null,null,null,4]
[]
["Sollte eine Mannschaft ausfallen wird eine Doppelrunde gespielt, wobei nur die 1. Runde in die Wertung kommt!"]

{"sheet":"Schüler A","index":3,"n_rows":112,"n_cols":28,"rows_kept":112,"cut":false,"hidden":false,"merged":[[45,23,45,24],[45,27,45,28],[81,23,81,24],[81,27,81,28],[82,23,82,24],[82,27,82,28],[62,9,62,28],[63,9,63,28],[67,9,67,22],[67,23,67,24],[67,27,67,28],[54,9,54,10],[54,11,54,12],[54,13,54,14],[54,15,54,16],[59,9,59,10],[59,11,59,12],[59,13,59,14],[59,15,59,16],[47,18,51,27],[43,27,43,28],[44,23,44,24],[44,27,44,28],[109,0,109,6],[109,9,109,22],[109,23,109,24],[109,27,109,28],[101,9,101,28],[102,9,102,28],[106,9,106,22],[106,23,106,24],[106,27,106,28],[93,9,93,10],[93,11,93,12],[93,13,93,14],[93,15,93,16],[98,9,98,10],[98,11,98,12],[98,13,98,14],[98,15,98,16],[86,18,90,27],[83,23,83,24],[83,27,83,28],[84,23,84,24],[111,0,111,28],[107,0,107,6],[107,9,107,22],[107,23,107,24],[107,27,107,28],[108,0,108,6],[108,9,108,22],[108,23,108,24],[108,27,108,28],[87,15,87,16],[88,15,88,16],[89,15,89,16],[90,15,90,16],[80,1,80,6],[80,7,92,7],[81,1,81,6],[81,9,81,22],[82,1,82,6],[82,9,82,22],[83,1,83,6],[83,9,83,22],[84,1,84,6],[84,9,84,22],[85,1,85,6],[85,8,85,28],[86,1,86,2],[86,3,86,6],[86,15,86,16],[84,27,84,28],[70,0,70,6],[70,9,70,22],[70,23,70,24],[70,27,70,28],[72,0,72,28],[68,0,68,6],[68,9,68,22],[68,23,68,24],[68,27,68,28],[69,0,69,6],[69,9,69,22],[69,23,69,24],[69,27,69,28],[30,9,30,22],[31,9,31,22],[48,15,48,16],[49,15,49,16],[50,15,50,16],[51,15,51,16],[41,1,41,6],[41,7,53,7],[42,1,42,6],[42,9,42,22],[43,1,43,6],[43,9,43,22],[44,1,44,6],[44,9,44,22],[45,1,45,6],[45,9,45,22],[46,1,46,6],[46,8,46,28],[47,1,47,2],[47,3,47,6],[47,15,47,16],[42,23,42,24],[42,27,42,28],[43,23,43,24],[33,0,33,28],[15,9,15,10],[15,11,15,12],[15,13,15,14],[15,15,15,16],[20,9,20,10],[20,11,20,12],[20,13,20,14],[20,15,20,16],[23,9,23,28],[24,9,24,28],[30,0,30,6],[30,23,30,24],[30,27,30,28],[31,0,31,6],[31,23,31,24],[31,27,31,28],[28,23,28,24],[28,27,28,28],[29,0,29,6],[29,23,29,24],[29,27,29,28],[28,9,28,22],[29,9,29,22],[2,1,2,6],[2,7,14,7],[2,8,2,22],[3,1,3,6],[3,9,3,22],[8,1,8,2],[8,3,8,6],[6,9,6,22],[7,8,7,28],[6,1,6,6],[7,1,7,6],[8,15,8,16],[8,18,12,27],[9,15,9,16],[10,15,10,16],[11,15,11,16],[12,15,12,16],[4,1,4,6],[4,9,4,22],[5,1,5,6],[5,9,5,22]]}
[]
[]
["Bewerb:","Vorarlberger Meisterschaft 2015",null,null,null,null,null,null,"Mannschaften"]
["Veranstalter:","VLRV Vorarlberg",null,null,null,null,null,null,"Sulz","David Madlerner / Elias Kronberger"]
["Ausrichter:","RC Höchst",null,null,null,null,null,null,"Dornbirn 1","Philipp Schwendinger / Jonathan Gawlik"]
["Spielort:","Rheinauhalle",null,null,null,null,null,null,"Höchst 2","Jonas Lampert / Mathias Veit"]
["Termin","Samstag 14. März",null,null,null,null,null,null,"Höchst 3","Jan Buhri / Leon Schobel"]
["Beginn:","13:30 - 15:00 Uhr"]
["Kategorie:","Schüler A",null,"1. Runde",null,null,null,null,"Mannschaft",1,2,3,4,5,6,"Pkt."]
[null,null,null,null,null,null,null,null,"Höchst 2",3,null,0,null,null,3,6]
[" ","Mannschaft","  ","Mannschaft",null,null,null,null,"Sulz",null,0,null,0,null,0,0]
["Spiel 1","Höchst 2",":","Höchst 3",2,":",1,null,"Dornbirn 1",null,3,3,null,3,null,9]
["Spiel 2","Sulz",":","Dornbirn 1",1,":",2,null,"Höchst 3",0,null,null,3,0,null,3]
["Spiel 3","Höchst 2",":","Dornbirn 1",4,":",6]
["Spiel 4","Sulz",":","Höchst 3",0,":",6,null,null,"Team 1",null,"Team 2",null,"Team 3",null,"Team 4"]
["Spiel 5","Dornbirn 1",":","Höchst 3",9,":",1,null,null,"Höch 2",null,"Sulz",null,"D'birn 1",null,"Höch 3"]
["Spiel 6","Höchst 2",":","Sulz",6,":",1,null,"1. Spiel",2,1,1,2,2,1,1,2]
[null,null,null,null,null,null,null,null,"2. Spiel",4,6,0,6,6,4,6,0]
[null,null,null,null,null,null,null,null,"3. Spiel",6,1,1,6,9,1,1,9]
[null,null,null,null,null,null,null,null,"Tore/Total",12,8,2,14,17,6,8,11]
[null,null,null,null,null,null,null,null,"Differenz",4,null,-12,null,11,null,-3]
[]
[]
[null,null,null,null,null,null,null,null,"Zeitnehmer","Johann Thaler. RC Höchst"]
[null,null,null,null,null,null,null,null,"Kommisär","Simon Lubetz, RC Höchst"]
[]
[]
[null,null,null,null,null,null,null,null,"Endstand nach der 1. Runde",null,null,null,null,null,null,null,null,null,null,null,null,null,null,"Pkte",null,"Tore",null,"Rang"]
["Vorkommnisse","Spielzeit 2 x 5 Minuten",null,null,null,null,null,null,"Dornbirn 1","Philipp Schwendinger / Jonathan Gawlik",null,null,null,null,null,null,null,null,null,null,null,null,null,9,null,17,6,1]
[null,null,null,null,null,null,null,null,"Höchst 2","Jonas Lampert / Mathias Veit",null,null,null,null,null,null,null,null,null,null,null,null,null,6,null,12,8,2]
[null,null,null,null,null,null,null,null,"Höchst 3","Jan Buhri / Leon Schobel",null,null,null,null,null,null,null,null,null,null,null,null,null,3,null,8,11,3]
[null,null,null,null,null,null,null,null,"Sulz","David Madlerner / Elias Kronberger",null,null,null,null,null,null,null,null,null,null,null,null,null,0,null,2,14,4]
[]
["Sollte eine Mannschaft ausfallen wird eine Doppelrunde gespielt, wobei nur die 1. Runde in die Wertung kommt!"]
[]
[]
[]
[]
[]
[]
[]
["Bewerb:","Vorarlberger Meisterschaft 2015",null,null,null,null,null,null,"Endstand nach der 1. Runde",null,null,null,null,null,null,null,null,null,null,null,null,null,null,"Pkte",null,"Tore",null,"Rang"]
["Veranstalter:","VLRV Vorarlberg",null,null,null,null,null,null,"Dornbirn 1","Philipp Schwendinger / Jonathan Gawlik",null,null,null,null,null,null,null,null,null,null,null,null,null,9,null,17,6,1]
["Ausrichter:","RV Hohenems",null,null,null,null,null,null,"Höchst 2","Jonas Lampert / Mathias Veit",null,null,null,null,null,null,null,null,null,null,null,null,null,6,null,12,8,2]
["Spielort:","Radsporthalle",null,null,null,null,null,null,"Höchst 3","Jan Buhri / Leon Schobel",null,null,null,null,null,null,null,null,null,null,null,null,null,3,null,8,11,3]
["Termin","Samstag 11. April",null,null,null,null,null,null,"Sulz","David Madlerner / Elias Kronberger",null,null,null,null,null,null,null,null,null,null,null,null,null,0,null,2,14,4]
["Beginn:","13:30 - 15:00 Uhr"]
["Kategorie:","Schüler A",null,"2. Runde",null,null,null,null,"Mannschaft",1,2,3,4,5,6,"Pkt."]
[null,null,null,null,null,null,null,null,"Höchst 2",3,null,3,null,null,0,{"$f":"SUM(J49:O49)","v":6}]
[" ","Mannschaft","  ","Mannschaft",null,null,null,null,"Dornbirn 1",null,3,null,3,null,3,{"$f":"SUM(J50:O50)","v":9}]
["Spiel 1","Höchst 2",":","Höchst 3",2,":",1,null,"Sulz",null,0,0,null,0,null,0]
["Spiel 2","Dornbirn 1",":","Sulz",5,":",0,null,"Höchst 3",0,null,null,0,3,null,3]
["Spiel 3","Höchst 2",":","Sulz",5,":",0]
["Spiel 4","Dornbirn 1",":","Höchst 3",6,":",1,null,null,"Team 1",null,"Team 2",null,"Team 3",null,"Team 4"]
["Spiel 5","Sulz",":","Höchst 3",0,":",5,null,null,"Höch 2",null,"D'birn 1",null,"Sulz",null,"Höch 3"]
["Spiel 6","Höchst 2",":","Dornbirn 1",1,":",4,null,"1. Spiel",{"$f":"E51","v":2},{"$f":"G51","v":1},{"$f":"E52","v":5},{"$f":"G52","v":0},{"$f":"G52","v":0},{"$f":"E52","v":5},{"$f":"G51","v":1},{"$f":"E51","v":2}]
["Spiel 1","Höchst 2",":","Höchst 3",5,":",1,null,"2. Spiel",{"$f":"E53","v":5},{"$f":"G53","v":0},{"$f":"E54","v":6},{"$f":"G54","v":1},{"$f":"G53","v":0},{"$f":"E53","v":5},{"$f":"G54","v":1},{"$f":"E54","v":6}]
["Spiel 4","Dornbirn 1",":","Höchst 3",6,":",0,null,"3. Spiel",{"$f":"E56","v":1},{"$f":"G56","v":4},{"$f":"G56","v":4},{"$f":"E56","v":1},{"$f":"E55","v":0},{"$f":"G55","v":5},{"$f":"G55","v":5},{"$f":"E55","v":0}]
["Spiel 6","Höchst 2",":","Dornbirn 1",2,":",8,null,"Tore/Total",{"$f":"SUM(J56:J58)","v":8},{"$f":"SUM(K56:K58)","v":5},15,2,0,15,7,8,null,"Kontrollsumme"]
[null,null,null,null,null,null,null,null,"Differenz",{"$f":"J59-K59","v":3},null,{"$f":"L59-M59","v":13},null,{"$f":"N59-O59","v":-15},null,{"$f":"P59-Q59","v":-1},null,null,{"$f":"SUM(J60:Q60)","v":0}]
[]
[]
[null,null,null,null,null,null,null,null,"Zeitnehmer","Philipp Feurstein"]
[null,null,null,null,null,null,null,null,"Kommisär","Herbert Benzer, Max Schwendinger"]
[]
[]
[null,null,null,null,null,null,null,null,"Endstand nach der 2. Runde",null,null,null,null,null,null,null,null,null,null,null,null,null,null,"Pkte",null,"Tore",null,"Rang"]
["Vorkommnisse","Spielzeit 2 x 5 Minuten",null,null,null,null,null,null,"Dornbirn 1","Philipp Schwendinger / Jonathan Gawlik",null,null,null,null,null,null,null,null,null,null,null,null,null,{"$f":"X43+P50","v":18},null,{"$f":"Z43+L59","v":32},{"$f":"AA43+M59","v":8},1]
["Sulz fällt in dieser Runde aus, alle Spiele mit 0:5",null,null,null,null,null,null,null,"Höchst 2","Jonas Lampert / Mathias Veit",null,null,null,null,null,null,null,null,null,null,null,null,null,{"$f":"X44+P49","v":12},null,{"$f":"Z44+J59","v":20},{"$f":"AA44+K59","v":13},2]
[null,null,null,null,null,null,null,null,"Höchst 3","Jan Buhri / Leon Schobel",null,null,null,null,null,null,null,null,null,null,null,null,null,{"$f":"X45+P52","v":6},null,{"$f":"Z45+P59","v":15},{"$f":"AA45+Q59","v":19},3]
[null,null,null,null,null,null,null,null,"Sulz","David Madlerner / Elias Kronberger",null,null,null,null,null,null,null,null,null,null,null,null,null,{"$f":"X46+P51","v":0},null,{"$f":"Z46+N59","v":2},{"$f":"AA46+O59","v":29},4]
[]
["Sollte eine Mannschaft ausfallen wird eine Doppelrunde gespielt, wobei nur die 1. Runde in die Wertung kommt!"]
[]
[]
[]
[]
[]
[]
[]
["Bewerb:","Vorarlberger Meisterschaft 2015",null,null,null,null,null,null,"Endstand nach der 2. Runde",null,null,null,null,null,null,null,null,null,null,null,null,null,null,"Pkte",null,"Tore",null,"Rang"]
["Veranstalter:","VLRV Vorarlberg",null,null,null,null,null,null,"Dornbirn 1","Philipp Schwendinger / Jonathan Gawlik",null,null,null,null,null,null,null,null,null,null,null,null,null,{"$f":"X68","v":18},null,{"$f":"Z68","v":32},{"$f":"AA68","v":8},1]
["Ausrichter:","RV Sulz",null,null,null,null,null,null,"Höchst 2","Jonas Lampert / Mathias Veit",null,null,null,null,null,null,null,null,null,null,null,null,null,{"$f":"X69","v":12},null,{"$f":"Z69","v":20},13,2]
["Spielort:","Volksschule Turnhalle",null,null,null,null,null,null,"Höchst 3","Jan Buhri / Leon Schobel",null,null,null,null,null,null,null,null,null,null,null,null,null,6,null,{"$f":"Z70","v":15},19,3]
["Termin","Samstag 18. April",null,null,null,null,null,null,"Sulz","David Madlerner / Elias Kronberger",null,null,null,null,null,null,null,null,null,null,null,null,null,0,null,{"$f":"Z71","v":2},29,4]
["Beginn:","13:00 - 14:15 Uhr"]
["Kategorie:","Schüler A",null,"3. Runde",null,null,null,null,"Mannschaft",1,2,3,4,5,6,"Pkt."]
[null,null,null,null,null,null,null,null,"Höchst 2"]
[" ","Mannschaft","  ","Mannschaft",null,null,null,null,"Dornbirn 1"]
["Spiel 1","Höchst 2",":","Höchst 3",null,":",null,null,"Sulz"]
["Spiel 2","Dornbirn 1",":","Sulz",null,":",null,null,"Höchst 3"]
["Spiel 3","Höchst 2",":","Sulz",null,":"]
["Spiel 4","Dornbirn 1",":","Höchst 3",null,":",null,null,null,"Team 1",null,"Team 2",null,"Team 3",null,"Team 4"]
["Spiel 5","Sulz",":","Höchst 3",null,":",null,null,null,"Höch 2",null,"D'birn 1",null,"Sulz",null,"Höch 3"]
["Spiel 6","Höchst 2",":","Dornbirn 1",null,":",null,null,"1. Spiel"]
[null,null,null,null,null,null,null,null,"2. Spiel"]
[null,null,null,null,null,null,null,null,"3. Spiel"]
[null,null,null,null,null,null,null,null,"Tore/Total"]
[null,null,null,null,null,null,null,null,"Differenz"]
[]
[]
[null,null,null,null,null,null,null,null,"Zeitnehmer"]
[null,null,null,null,null,null,null,null,"Kommisär"]
[]
[]
[null,null,null,null,null,null,null,null,"Endstand nach der 3. Runde",null,null,null,null,null,null,null,null,null,null,null,null,null,null,"Pkte",null,"Tore",null,"Rang"]
["Vorkommnisse","Spielzeit 2 x 5 Minuten",null,null,null,null,null,null,null,null,null,null,null,null,null,null,null,null,null,null,null,null,null,null,null,null,null,1]
[null,null,null,null,null,null,null,null,null,null,null,null,null,null,null,null,null,null,null,null,null,null,null,null,null,null,null,2]
[null,null,null,null,null,null,null,null,null,null,null,null,null,null,null,null,null,null,null,null,null,null,null,null,null,null,null,3]
[null,null,null,null,null,null,null,null,null,null,null,null,null,null,null,null,null,null,null,null,null,null,null,null,null,null,null,4]
[]
["Sollte eine Mannschaft ausfallen wird eine Doppelrunde gespielt, wobei nur die 1. Runde in die Wertung kommt!"]

{"sheet":"Schüler B","index":4,"n_rows":112,"n_cols":28,"rows_kept":112,"cut":false,"hidden":false,"merged":[[82,23,82,24],[82,27,82,28],[83,23,83,24],[83,27,83,28],[62,9,62,28],[63,9,63,28],[67,9,67,22],[67,23,67,24],[67,27,67,28],[109,0,109,6],[109,9,109,22],[109,23,109,24],[109,27,109,28],[111,0,111,28],[107,0,107,6],[107,9,107,22],[107,23,107,24],[107,27,107,28],[108,0,108,6],[108,9,108,22],[108,23,108,24],[108,27,108,28],[101,9,101,28],[102,9,102,28],[106,9,106,22],[106,23,106,24],[106,27,106,28],[93,9,93,10],[93,11,93,12],[93,13,93,14],[93,15,93,16],[98,9,98,10],[98,11,98,12],[98,13,98,14],[98,15,98,16],[86,18,90,27],[87,15,87,16],[88,15,88,16],[89,15,89,16],[90,15,90,16],[80,1,80,6],[80,7,92,7],[81,1,81,6],[81,9,81,22],[82,1,82,6],[82,9,82,22],[83,1,83,6],[83,9,83,22],[84,1,84,6],[84,9,84,22],[85,1,85,6],[85,8,85,28],[86,1,86,2],[86,3,86,6],[86,15,86,16],[84,23,84,24],[84,27,84,28],[81,23,81,24],[81,27,81,28],[70,0,70,6],[70,9,70,22],[70,23,70,24],[70,27,70,28],[72,0,72,28],[68,0,68,6],[68,9,68,22],[68,23,68,24],[68,27,68,28],[69,0,69,6],[69,9,69,22],[69,23,69,24],[69,27,69,28],[54,15,54,16],[59,9,59,10],[59,11,59,12],[59,13,59,14],[59,15,59,16],[47,18,51,27],[48,15,48,16],[49,15,49,16],[50,15,50,16],[51,15,51,16],[54,9,54,10],[54,11,54,12],[54,13,54,14],[41,1,41,6],[41,7,53,7],[42,1,42,6],[42,9,42,22],[43,1,43,6],[43,9,43,22],[44,1,44,6],[44,9,44,22],[45,1,45,6],[45,9,45,22],[46,1,46,6],[46,8,46,28],[47,1,47,2],[47,3,47,6],[47,15,47,16],[42,23,42,24],[42,27,42,28],[43,23,43,24],[43,27,43,28],[44,23,44,24],[44,27,44,28],[45,23,45,24],[45,27,45,28],[33,0,33,28],[30,0,30,6],[30,23,30,24],[30,27,30,28],[31,0,31,6],[31,23,31,24],[31,27,31,28],[30,9,30,22],[31,9,31,22],[28,23,28,24],[28,27,28,28],[29,0,29,6],[29,23,29,24],[29,27,29,28],[28,9,28,22],[29,9,29,22],[5,9,5,22],[23,9,23,28],[24,9,24,28],[11,15,11,16],[12,15,12,16],[6,9,6,22],[7,8,7,28],[15,9,15,10],[15,11,15,12],[15,13,15,14],[15,15,15,16],[20,9,20,10],[20,11,20,12],[20,13,20,14],[20,15,20,16],[2,1,2,6],[2,7,14,7],[2,8,2,22],[3,1,3,6],[3,9,3,22],[8,1,8,2],[8,3,8,6],[8,18,12,27],[9,15,9,16],[10,15,10,16],[6,1,6,6],[7,1,7,6],[8,15,8,16],[4,1,4,6],[4,9,4,22],[5,1,5,6]]}
[]
[]
["Bewerb:","Vorarlberger Meisterschaft 2015",null,null,null,null,null,null,"Mannschaften"]
["Veranstalter:","VLRV Vorarlberg",null,null,null,null,null,null,"Dornbirn 2","Simon Tiefenthaler / Simon Sohler"]
["Ausrichter:","RC Höchst",null,null,null,null,null,null,"Höchst 4","Linus lampert / Elias Gabriel"]
["Spielort:","Rheinauhalle",null,null,null,null,null,null,"Höchst 5","Leon Schobel / Nikolas Brunner"]
["Termin","Samstag 14. März",null,null,null,null,null,null,"Höchst 6","Leander Piuk / Liam Plangger"]
["Beginn:","15:00 - 16:30 Uhr"]
["Kategorie:","Schüler B",null,"1. Runde",null,null,null,null,"Mannschaft",1,2,3,4,5,6,"Pkt."]
[null,null,null,null,null,null,null,null,"Höchst 4",3,null,3,null,null,3,9]
[" ","Mannschaft","  ","Mannschaft",null,null,null,null,"Dornbirn 2",null,3,null,3,null,0,6]
["Spiel 1","Höchst 4",":","Höchst 6",2,":",0,null,"Höchst 5",null,0,0,null,3,null,3]
["Spiel 2","Dornbirn 2",":","Höchst 5",3,":",2,null,"Höchst 6",0,null,null,0,0,null,0]
["Spiel 3","Höchst 4",":","Höchst 5",3,":",1]
["Spiel 4","Dornbirn 2",":","Höchst 6",3,":",1,null,null,"Team 1",null,"Team 2",null,"Team 3",null,"Team 4"]
["Spiel 5","Höchst 5",":","Höchst 6",2,":",0,null,null,"Höch 4",null,"D'birn 2",null,"Höch 5",null,"Höch 6"]
["Spiel 6","Höchst 4",":","Dornbirn 2",3,":",2,null,"1. Spiel",2,0,3,2,2,3,0,2]
[null,null,null,null,null,null,null,null,"2. Spiel",3,1,3,1,1,3,1,3]
[null,null,null,null,null,null,null,null,"3. Spiel",3,2,2,3,2,0,0,2]
[null,null,null,null,null,null,null,null,"Tore/Total",8,6,5,6,5,6,1,7]
[null,null,null,null,null,null,null,null,"Differenz",5,null,2,null,-1,null,-6]
[]
[]
[null,null,null,null,null,null,null,null,"Zeitnehmer","Simon Schlegel, RC Höchst"]
[null,null,null,null,null,null,null,null,"Kommisär","Sebastian Brunner, RC Höchst"]
[]
[]
[null,null,null,null,null,null,null,null,"Endstand nach der 1. Runde",null,null,null,null,null,null,null,null,null,null,null,null,null,null,"Pkte",null,"Tore",null,"Rang"]
["Vorkommnisse","Spielzeit 2 x 5 Minuten",null,null,null,null,null,null,"Höchst 4","Linus lampert / Elias Gabriel",null,null,null,null,null,null,null,null,null,null,null,null,null,9,null,8,3,1]
[null,null,null,null,null,null,null,null,"Dornbirn 2","Simon Tiefenthaler / Simon Sohler",null,null,null,null,null,null,null,null,null,null,null,null,null,6,null,8,6,2]
[null,null,null,null,null,null,null,null,"Höchst 5","Leon Schobel / Nikolas Brunner",null,null,null,null,null,null,null,null,null,null,null,null,null,3,null,5,6,3]
[null,null,null,null,null,null,null,null,"Höchst 6","Leander Piuk / Liam Plangger",null,null,null,null,null,null,null,null,null,null,null,null,null,0,null,1,7,4]
[]
["Sollte eine Mannschaft ausfallen wird eine Doppelrunde gespielt, wobei nur die 1. Runde in die Wertung kommt!"]
[]
[]
[]
[]
[]
[]
[]
["Bewerb:","Vorarlberger Meisterschaft 2015",null,null,null,null,null,null,"Endstand nach der 1. Runde",null,null,null,null,null,null,null,null,null,null,null,null,null,null,"Pkte",null,"Tore",null,"Rang"]
["Veranstalter:","VLRV Vorarlberg",null,null,null,null,null,null,"Höchst 4","Linus lampert / Elias Gabriel",null,null,null,null,null,null,null,null,null,null,null,null,null,9,null,8,3,1]
["Ausrichter:","RV Hohenems",null,null,null,null,null,null,"Dornbirn 2","Simon Tiefenthaler / Simon Sohler",null,null,null,null,null,null,null,null,null,null,null,null,null,6,null,8,6,2]
["Spielort:","Radsporthalle",null,null,null,null,null,null,"Höchst 5","Leon Schobel / Nikolas Brunner",null,null,null,null,null,null,null,null,null,null,null,null,null,3,null,5,6,3]
["Termin","Samstag 11. April",null,null,null,null,null,null,"Höchst 6","Leander Piuk / Liam Plangger",null,null,null,null,null,null,null,null,null,null,null,null,null,0,null,1,7,4]
["Beginn:","11:45 - 13:15 Uhr"]
["Kategorie:","Schüler B",null,"2. Runde",null,null,null,null,"Mannschaft",1,2,3,4,5,6,"Pkt."]
[null,null,null,null,null,null,null,null,"Höchst 4",3,null,3,null,null,3,{"$f":"SUM(J49:O49)","v":9}]
[" ","Mannschaft","  ","Mannschaft",null,null,null,null,"Dornbirn 2",null,0,null,0,null,0,{"$f":"SUM(J50:O50)","v":0}]
["Spiel 1","Höchst 4",":","Höchst 6",7,":",2,null,"Höchst 5",null,3,0,null,3,null,6]
["Spiel 2","Dornbirn 2",":","Höchst 5",3,":",4,null,"Höchst 6",0,null,null,3,0,null,3]
["Spiel 3","Höchst 4",":","Höchst 5",5,":",1]
["Spiel 4","Dornbirn 2",":","Höchst 6",3,":",4,null,null,"Team 1",null,"Team 2",null,"Team 3",null,"Team 4"]
["Spiel 5","Höchst 5",":","Höchst 6",6,":",1,null,null,"Höch 4",null,"D'birn 2",null,"Höch 5",null,"Höch 6"]
["Spiel 6","Höchst 4",":","Dornbirn 2",3,":",0,null,"1. Spiel",{"$f":"E51","v":7},{"$f":"G51","v":2},{"$f":"E52","v":3},{"$f":"G52","v":4},{"$f":"G52","v":4},{"$f":"E52","v":3},{"$f":"G51","v":2},{"$f":"E51","v":7}]
[null,null,null,null,null,null,null,null,"2. Spiel",{"$f":"E53","v":5},{"$f":"G53","v":1},{"$f":"E54","v":3},{"$f":"G54","v":4},{"$f":"G53","v":1},{"$f":"E53","v":5},{"$f":"G54","v":4},{"$f":"E54","v":3}]
[null,null,null,null,null,null,null,null,"3. Spiel",{"$f":"E56","v":3},{"$f":"G56","v":0},{"$f":"G56","v":0},{"$f":"E56","v":3},{"$f":"E55","v":6},{"$f":"G55","v":1},{"$f":"G55","v":1},{"$f":"E55","v":6}]
[null,null,null,null,null,null,null,null,"Tore/Total",{"$f":"SUM(J56:J58)","v":15},{"$f":"SUM(K56:K58)","v":3},6,11,11,9,7,16]
[null,null,null,null,null,null,null,null,"Differenz",{"$f":"J59-K59","v":12},null,{"$f":"L59-M59","v":-5},null,{"$f":"N59-O59","v":2},null,{"$f":"P59-Q59","v":-9}]
[]
[]
[null,null,null,null,null,null,null,null,"Zeitnehmer","Herbert Benzer, Philipp Feurstein"]
[null,null,null,null,null,null,null,null,"Kommisär","Max Schwendinger, Michael Eiler"]
[]
[]
[null,null,null,null,null,null,null,null,"Endstand nach der 2. Runde",null,null,null,null,null,null,null,null,null,null,null,null,null,null,"Pkte",null,"Tore",null,"Rang"]
["Vorkommnisse","Spielzeit 2 x 5 Minuten",null,null,null,null,null,null,"Höchst 4","Linus lampert / Elias Gabriel",null,null,null,null,null,null,null,null,null,null,null,null,null,{"$f":"X43+P49","v":18},null,{"$f":"Z43+J59","v":23},{"$f":"AA43+K59","v":6},1]
["D'birn 2: Statt Simon Sohler spielt Michael Feurstein",null,null,null,null,null,null,null,"Dornbirn 2","Simon Tiefenthaler / Simon Sohler",null,null,null,null,null,null,null,null,null,null,null,null,null,{"$f":"X44+P50","v":6},null,{"$f":"Z44+L59","v":14},{"$f":"AA44+M59","v":17},3]
["Höchst 6: Statt Liam Plangger spielt Pascal Rüef",null,null,null,null,null,null,null,"Höchst 5","Leon Schobel / Nikolas Brunner",null,null,null,null,null,null,null,null,null,null,null,null,null,{"$f":"X45+P51","v":9},null,{"$f":"Z45+N59","v":16},{"$f":"AA45+O59","v":15},2]
[null,null,null,null,null,null,null,null,"Höchst 6","Leander Piuk / Liam Plangger",null,null,null,null,null,null,null,null,null,null,null,null,null,{"$f":"X46+P52","v":3},null,{"$f":"Z46+P59","v":8},{"$f":"AA46+Q59","v":23},4]
[]
["Sollte eine Mannschaft ausfallen wird eine Doppelrunde gespielt, wobei nur die 1. Runde in die Wertung kommt!"]
[]
[]
[]
[]
[]
[]
[]
["Bewerb:","Vorarlberger Meisterschaft 2015",null,null,null,null,null,null,"Endstand nach der 2. Runde",null,null,null,null,null,null,null,null,null,null,null,null,null,null,"Pkte",null,"Tore",null,"Rang"]
["Veranstalter:","VLRV Vorarlberg",null,null,null,null,null,null,"Höchst 4","Linus lampert / Elias Gabriel",null,null,null,null,null,null,null,null,null,null,null,null,null,{"$f":"X68","v":18},null,{"$f":"Z68","v":23},{"$f":"AA68","v":6},1]
["Ausrichter:","RV Sulz",null,null,null,null,null,null,"Höchst 5","Leon Schobel / Nikolas Brunner",null,null,null,null,null,null,null,null,null,null,null,null,null,{"$f":"X70","v":9},null,{"$f":"Z70","v":16},{"$f":"AA70","v":15},2]
["Spielort:","Volksschule Turnhalle",null,null,null,null,null,null,"Dornbirn 2","Simon Tiefenthaler / Simon Sohler",null,null,null,null,null,null,null,null,null,null,null,null,null,{"$f":"X69","v":6},null,{"$f":"Z69","v":14},{"$f":"AA69","v":17},3]
["Termin","Samstag 18. April",null,null,null,null,null,null,"Höchst 6","Leander Piuk / Liam Plangger",null,null,null,null,null,null,null,null,null,null,null,null,null,{"$f":"X71","v":3},null,{"$f":"Z71","v":8},{"$f":"AA71","v":23},4]
["Beginn:","11:15 - 13:15 Uhr"]
["Kategorie:","Schüler B",null,"3. Runde",null,null,null,null,"Mannschaft",1,2,3,4,5,6,"Pkt."]
[null,null,null,null,null,null,null,null,"Höchst 4"]
[" ","Mannschaft","  ","Mannschaft",null,null,null,null,"Dornbirn 2"]
["Spiel 1","Höchst 4",":","Höchst 6",null,":",null,null,"Höchst 5"]
["Spiel 2","Dornbirn 2",":","Höchst 5",null,":",null,null,"Höchst 6"]
["Spiel 3","Höchst 4",":","Höchst 5",null,":"]
["Spiel 4","Dornbirn 2",":","Höchst 6",null,":",null,null,null,"Team 1",null,"Team 2",null,"Team 3",null,"Team 4"]
["Spiel 5","Höchst 5",":","Höchst 6",null,":",null,null,null,"Höch 4",null,"D'birn 2",null,"Höch 5",null,"Höch 6"]
["Spiel 6","Höchst 4",":","Dornbirn 2",null,":",null,null,"1. Spiel"]
[null,null,null,null,null,null,null,null,"2. Spiel"]
[null,null,null,null,null,null,null,null,"3. Spiel"]
[null,null,null,null,null,null,null,null,"Tore/Total"]
[null,null,null,null,null,null,null,null,"Differenz"]
[]
[]
[null,null,null,null,null,null,null,null,"Zeitnehmer"]
[null,null,null,null,null,null,null,null,"Kommisär"]
[]
[]
[null,null,null,null,null,null,null,null,"Endstand nach der 3. Runde",null,null,null,null,null,null,null,null,null,null,null,null,null,null,"Pkte",null,"Tore",null,"Rang"]
["Vorkommnisse","Spielzeit 2 x 5 Minuten",null,null,null,null,null,null,null,null,null,null,null,null,null,null,null,null,null,null,null,null,null,null,null,null,null,1]
[null,null,null,null,null,null,null,null,null,null,null,null,null,null,null,null,null,null,null,null,null,null,null,null,null,null,null,2]
[null,null,null,null,null,null,null,null,null,null,null,null,null,null,null,null,null,null,null,null,null,null,null,null,null,null,null,3]
[null,null,null,null,null,null,null,null,null,null,null,null,null,null,null,null,null,null,null,null,null,null,null,null,null,null,null,4]
[]
["Sollte eine Mannschaft ausfallen wird eine Doppelrunde gespielt, wobei nur die 1. Runde in die Wertung kommt!"]

{"sheet":"Schüler C","index":5,"n_rows":112,"n_cols":28,"rows_kept":112,"cut":false,"hidden":false,"merged":[[45,27,45,28],[81,23,81,24],[81,27,81,28],[82,23,82,24],[82,27,82,28],[62,9,62,28],[63,9,63,28],[67,9,67,22],[67,23,67,24],[67,27,67,28],[54,9,54,10],[54,11,54,12],[54,13,54,14],[54,15,54,16],[59,9,59,10],[59,11,59,12],[59,13,59,14],[59,15,59,16],[47,18,51,27],[44,27,44,28],[109,0,109,6],[109,9,109,22],[109,23,109,24],[109,27,109,28],[101,9,101,28],[102,9,102,28],[106,9,106,22],[106,23,106,24],[106,27,106,28],[93,9,93,10],[93,11,93,12],[93,13,93,14],[93,15,93,16],[98,9,98,10],[98,11,98,12],[98,13,98,14],[98,15,98,16],[86,18,90,27],[83,23,83,24],[83,27,83,28],[84,23,84,24],[84,27,84,28],[45,23,45,24],[111,0,111,28],[107,0,107,6],[107,9,107,22],[107,23,107,24],[107,27,107,28],[108,0,108,6],[108,9,108,22],[108,23,108,24],[108,27,108,28],[87,15,87,16],[88,15,88,16],[89,15,89,16],[90,15,90,16],[80,1,80,6],[80,7,92,7],[81,1,81,6],[81,9,81,22],[82,1,82,6],[82,9,82,22],[83,1,83,6],[83,9,83,22],[84,1,84,6],[84,9,84,22],[85,1,85,6],[85,8,85,28],[86,1,86,2],[86,3,86,6],[86,15,86,16],[70,0,70,6],[70,9,70,22],[70,23,70,24],[70,27,70,28],[72,0,72,28],[68,0,68,6],[68,9,68,22],[68,23,68,24],[68,27,68,28],[69,0,69,6],[69,9,69,22],[69,23,69,24],[69,27,69,28],[48,15,48,16],[49,15,49,16],[50,15,50,16],[51,15,51,16],[41,1,41,6],[41,7,53,7],[42,1,42,6],[42,9,42,22],[43,1,43,6],[43,9,43,22],[44,1,44,6],[44,9,44,22],[45,1,45,6],[45,9,45,22],[46,1,46,6],[46,8,46,28],[47,1,47,2],[47,3,47,6],[47,15,47,16],[42,23,42,24],[42,27,42,28],[43,23,43,24],[43,27,43,28],[44,23,44,24],[29,0,29,6],[29,23,29,24],[29,27,29,28],[31,9,31,22],[30,9,30,22],[29,9,29,22],[30,0,30,6],[31,0,31,6],[30,27,30,28],[31,23,31,24],[31,27,31,28],[33,0,33,28],[2,7,14,7],[2,8,2,22],[7,8,7,28],[8,1,8,2],[8,3,8,6],[8,15,8,16],[8,18,12,27],[9,15,9,16],[10,15,10,16],[11,15,11,16],[12,15,12,16],[30,23,30,24],[15,9,15,10],[15,11,15,12],[15,13,15,14],[15,15,15,16],[20,9,20,10],[20,11,20,12],[20,13,20,14],[20,15,20,16],[7,1,7,6],[2,1,2,6],[4,1,4,6],[28,23,28,24],[28,27,28,28],[28,9,28,22],[4,9,4,22],[3,1,3,6],[3,9,3,22],[5,1,5,6],[5,9,5,22],[6,9,6,22],[6,1,6,6],[23,9,23,28],[24,9,24,28]]}
[]
[]
["Bewerb:","Vorarlberger Meisterschaft 2015",null,null,null,null,null,null,"Mannschaften"]
["Veranstalter:","VLRV Vorarlberg",null,null,null,null,null,null,"Dornbirn 3","David Buchhäusl / Dean Rüdiger"]
["Ausrichter:","RC Höchst",null,null,null,null,null,null,"Hohenems","Gabriel Moser / David Prisching"]
["Spielort:","Rheinauhalle",null,null,null,null,null,null,"Höchst 7","Max Mehele / Timo Lampert"]
["Termin","Samstag 14. März",null,null,null,null,null,null,"Höchst 8","Max Schallert / Leander Piuk"]
["Beginn:","13:30 - 15:00 uhr"]
["Kategorie:","Schüler C",null,"1. Runde",null,null,null,null,"Mannschaft",1,2,3,4,5,6,"Pkt."]
[null,null,null,null,null,null,null,null,"Höchst 7",1,null,3,null,null,3,7]
[" ","Mannschaft","  ","Mannschaft",null,null,null,null,"Dornbirn 3",null,0,null,0,null,0,0]
["Spiel 1","Höchst 7",":","Höchst 8",1,":",1,null,"Hohenems",null,3,0,null,3,null,6]
["Spiel 2","Dornbirn 3",":","Hohenems",1,":",3,null,"Höchst 8",1,null,null,3,0,null,4]
["Spiel 3","Höchst 7",":","Hohenems",2,":",1]
["Spiel 4","Dornbirn 3",":","Höchst 8",1,":",2,null,null,"Team 1",null,"Team 2",null,"Team 3",null,"Team 4"]
["Spiel 5","Hohenems",":","Höchst 8",1,":",0,null,null,"Höch 7",null,"D'birn 3",null,"H'ems",null,"Höch86"]
["Spiel 6","Höchst 7",":","Dornbirn 3",2,":",1,null,"1. Spiel",1,1,1,3,3,1,1,1]
[null,null,null,null,null,null,null,null,"2. Spiel",2,1,1,2,1,2,2,1]
[null,null,null,null,null,null,null,null,"3. Spiel",2,1,1,2,1,0,0,1]
[null,null,null,null,null,null,null,null,"Tore/Total",5,3,3,7,5,3,3,3]
[null,null,null,null,null,null,null,null,"Differenz",2,null,-4,null,2,null,0]
[]
[]
[null,null,null,null,null,null,null,null,"Zeitnehmer","Simon Schlegel. RC Höchst"]
[null,null,null,null,null,null,null,null,"Kommisär","Markus Bröll, RcHöchst"]
[]
[]
[null,null,null,null,null,null,null,null,"Endstand nach der 1. Runde",null,null,null,null,null,null,null,null,null,null,null,null,null,null,"Pkte",null,"Tore",null,"Rang"]
["Vorkommnisse","Spielzeit 2 x 5 Minuten",null,null,null,null,null,null,"Höchst 7","Max Mehele / Timo Lampert",null,null,null,null,null,null,null,null,null,null,null,null,null,7,null,5,3,1]
[null,null,null,null,null,null,null,null,"Hohenems","Gabriel Moser / David Prisching",null,null,null,null,null,null,null,null,null,null,null,null,null,6,null,5,3,2]
[null,null,null,null,null,null,null,null,"Höchst 8","Max Schallert / Leander Piuk",null,null,null,null,null,null,null,null,null,null,null,null,null,4,null,3,3,3]
[null,null,null,null,null,null,null,null,"Dornbirn 3","David Buchhäusl / Dean Rüdiger",null,null,null,null,null,null,null,null,null,null,null,null,null,0,null,3,7,4]
[]
["Sollte eine Mannschaft ausfallen wird eine Doppelrunde gespielt, wobei nur die 1. Runde in die Wertung kommt!"]
[]
[]
[]
[]
[]
[]
[]
["Bewerb:","Vorarlberger Meisterschaft 2015",null,null,null,null,null,null,"Endstand nach der 1. Runde",null,null,null,null,null,null,null,null,null,null,null,null,null,null,"Pkte",null,"Tore",null,"Rang"]
["Veranstalter:","VLRV Vorarlberg",null,null,null,null,null,null,"Höchst 7","Max Mehele / Timo Lampert",null,null,null,null,null,null,null,null,null,null,null,null,null,7,null,5,3,1]
["Ausrichter:","RV Hohenems",null,null,null,null,null,null,"Hohenems","Gabriel Moser / David Prisching",null,null,null,null,null,null,null,null,null,null,null,null,null,6,null,5,3,2]
["Spielort:","Radsporthalle",null,null,null,null,null,null,"Höchst 8","Max Schallert / Leander Piuk",null,null,null,null,null,null,null,null,null,null,null,null,null,4,null,3,3,3]
["Termin","Samstag 11. April",null,null,null,null,null,null,"Dornbirn 3","David Buchhäusl / Dean Rüdiger",null,null,null,null,null,null,null,null,null,null,null,null,null,0,null,3,7,4]
["Beginn:","10:00 - 11:30 Uhr"]
["Kategorie:","Schüler C",null,"2. Runde",null,null,null,null,"Mannschaft",1,2,3,4,5,6,"Pkt."]
[null,null,null,null,null,null,null,null,"Höchst 7",3,null,1,null,null,1,{"$f":"SUM(J49:O49)","v":5}]
[" ","Mannschaft","  ","Mannschaft",null,null,null,null,"Dornbirn 3",null,0,null,0,null,1,{"$f":"SUM(J50:O50)","v":1}]
["Spiel 1","Höchst 7",":","Höchst 8",1,":",0,null,"Hohenems",null,3,1,null,0,null,4]
["Spiel 2","Dornbirn 3",":","Hohenems",0,":",1,null,"Höchst 8",0,null,null,3,3,null,6]
["Spiel 3","Höchst 7",":","Hohenems",1,":",1]
["Spiel 4","Dornbirn 3",":","Höchst 8",1,":",3,null,null,"Team 1",null,"Team 2",null,"Team 3",null,"Team 4"]
["Spiel 5","Hohenems",":","Höchst 8",0,":",1,null,null,"Höch 7",null,"D'birn 3",null,"H'ems",null,"Höch8"]
["Spiel 6","Höchst 7",":","Dornbirn 3",2,":",2,null,"1. Spiel",1,0,0,1,1,0,0,1]
[null,null,null,null,null,null,null,null,"2. Spiel",1,1,1,3,1,1,3,1]
[null,null,null,null,null,null,null,null,"3. Spiel",2,2,2,2,0,1,1,0]
[null,null,null,null,null,null,null,null,"Tore/Total",{"$f":"SUM(J56:J58)","v":4},{"$f":"SUM(K56:K58)","v":3},3,6,2,2,4,2]
[null,null,null,null,null,null,null,null,"Differenz",{"$f":"J59-K59","v":1},null,{"$f":"L59-M59","v":-3},null,{"$f":"N59-O59","v":0},null,{"$f":"P59-Q59","v":2}]
[]
[]
[null,null,null,null,null,null,null,null,"Zeitnehmer","Philipp Feurstein, Herbert Benzer"]
[null,null,null,null,null,null,null,null,"Kommisär","Michael Eiler"]
[]
[]
[null,null,null,null,null,null,null,null,"Endstand nach der 2. Runde",null,null,null,null,null,null,null,null,null,null,null,null,null,null,"Pkte",null,"Tore",null,"Rang"]
["Vorkommnisse","Spielzeit 2 x 5 Minuten",null,null,null,null,null,null,"Höchst 7","Max Mehele / Timo Lampert",null,null,null,null,null,null,null,null,null,null,null,null,null,{"$f":"X43+P49","v":12},null,{"$f":"Z43+J59","v":9},{"$f":"AA43+K59","v":6},1]
["Dornbirn 3: statt Dean Rüdiger spielt Marco Eibl",null,null,null,null,null,null,null,"Hohenems","Gabriel Moser / David Prisching",null,null,null,null,null,null,null,null,null,null,null,null,null,{"$f":"X44+P51","v":10},null,{"$f":"Z44+N59","v":7},{"$f":"AA44+O59","v":5},2]
[null,null,null,null,null,null,null,null,"Höchst 8","Max Schallert / Leander Piuk",null,null,null,null,null,null,null,null,null,null,null,null,null,{"$f":"X45+P52","v":10},null,{"$f":"Z45+P59","v":7},{"$f":"AA45+Q59","v":5},3]
[null,null,null,null,null,null,null,null,"Dornbirn 3","David Buchhäusl / Dean Rüdiger",null,null,null,null,null,null,null,null,null,null,null,null,null,{"$f":"X46+P50","v":1},null,{"$f":"Z46+L59","v":6},{"$f":"AA46+M59","v":13},4]
[]
["Sollte eine Mannschaft ausfallen wird eine Doppelrunde gespielt, wobei nur die 1. Runde in die Wertung kommt!"]
[]
[]
[]
[]
[]
[]
[]
["Bewerb:","Vorarlberger Meisterschaft 2015",null,null,null,null,null,null,"Endstand nach der 2. Runde",null,null,null,null,null,null,null,null,null,null,null,null,null,null,"Pkte",null,"Tore",null,"Rang"]
["Veranstalter:","VLRV Vorarlberg",null,null,null,null,null,null,"Höchst 7","Max Mehele / Timo Lampert",null,null,null,null,null,null,null,null,null,null,null,null,null,{"$f":"X68","v":12},null,{"$f":"Z68","v":9},6,1]
["Ausrichter:","RV Sulz",null,null,null,null,null,null,"Hohenems","Gabriel Moser / David Prisching",null,null,null,null,null,null,null,null,null,null,null,null,null,{"$f":"X69","v":10},null,7,5,2]
["Spielort:","Volksschule Turnhalle",null,null,null,null,null,null,"Höchst 8","Max Schallert / Leander Piuk",null,null,null,null,null,null,null,null,null,null,null,null,null,{"$f":"X70","v":10},null,7,5,3]
["Termin","Samstag 18. April",null,null,null,null,null,null,"Dornbirn 3","David Buchhäusl / Dean Rüdiger",null,null,null,null,null,null,null,null,null,null,null,null,null,{"$f":"X71","v":1},null,6,13,4]
["Beginn:","09:30 - 11:00 Uhr"]
["Kategorie:","Schüler C",null,"3. Runde",null,null,null,null,"Mannschaft",1,2,3,4,5,6,"Pkt."]
[null,null,null,null,null,null,null,null,"Höchst 7"]
[" ","Mannschaft","  ","Mannschaft",null,null,null,null,"Dornbirn 3"]
["Spiel 1","Höchst 7",":","Höchst 8",null,":",null,null,"Hohenems"]
["Spiel 2","Dornbirn 3",":","Hohenems",null,":",null,null,"Höchst 8"]
["Spiel 3","Höchst 7",":","Hohenems",null,":"]
["Spiel 4","Dornbirn 3",":","Höchst 8",null,":",null,null,null,"Team 1",null,"Team 2",null,"Team 3",null,"Team 4"]
["Spiel 5","Hohenems",":","Höchst 8",null,":",null,null,null,"Höch 7",null,"D'birn 3",null,"H'ems",null,"Höch86"]
["Spiel 6","Höchst 7",":","Dornbirn 3",null,":",null,null,"1. Spiel"]
[null,null,null,null,null,null,null,null,"2. Spiel"]
[null,null,null,null,null,null,null,null,"3. Spiel"]
[null,null,null,null,null,null,null,null,"Tore/Total"]
[null,null,null,null,null,null,null,null,"Differenz"]
[]
[]
[null,null,null,null,null,null,null,null,"Zeitnehmer"]
[null,null,null,null,null,null,null,null,"Kommisär"]
[]
[]
[null,null,null,null,null,null,null,null,"Endstand nach der 3. Runde",null,null,null,null,null,null,null,null,null,null,null,null,null,null,"Pkte",null,"Tore",null,"Rang"]
["Vorkommnisse","Spielzeit 2 x 5 Minuten",null,null,null,null,null,null,null,null,null,null,null,null,null,null,null,null,null,null,null,null,null,null,null,null,null,1]
[null,null,null,null,null,null,null,null,null,null,null,null,null,null,null,null,null,null,null,null,null,null,null,null,null,null,null,2]
[null,null,null,null,null,null,null,null,null,null,null,null,null,null,null,null,null,null,null,null,null,null,null,null,null,null,null,3]
[null,null,null,null,null,null,null,null,null,null,null,null,null,null,null,null,null,null,null,null,null,null,null,null,null,null,null,4]
[]
["Sollte eine Mannschaft ausfallen wird eine Doppelrunde gespielt, wobei nur die 1. Runde in die Wertung kommt!"]

{"sheet":"Meldungen","index":6,"n_rows":32,"n_cols":1,"rows_kept":32,"cut":false,"hidden":false,"merged":[]}
[]
["Schüler C                   Dornbirn 3       David Buchhäusl / Dean Rudigier"]
["                                   Hohenems      Gabriel Moser / David Prisching"]
["  Höchst 7         Max Mehele/ Timo Lampert"]
["  Höchst 8         Max Schallert / Leander Piuk (Doppelmeldung Piuk) "]
[]
["Schüler B                   Dornbirn 2       Simon Tiefenthaler / Simon Sohler"]
["  Höchst 4         Linus Lampert / Elias Gabriel"]
["  Höchst 5         Leon Schobel / Nikolas Brunner (Doppelmeldung Schobel)"]
["  Höchst 6         Leander Piuk / Liam Plangger (Doppelmeldung Piuk) "]
[]
["Schüler A                   Sulz                 Madlener David / Kronberger Elias"]
["                                   Dornbirn 1       Philipp Schwendinger / Jonathan Gawlik"]
["                                   Höchst 2         Jonas Lampert / Mathias Veit"]
["              Höchst 3         Jan Buhri / Leon Schobel (Doppelmeldung Schobel)"]
[]
["Jugend                       Dornbirn  1      Maximilian Schwendinger / Bastian Arnoldi  "]
["                                   Dornbirn 2       Benedikt Urbanz / Robert Gollob"]
["                                   Dornbirn 3       Marc Wiesbauer / Hannes Kohler"]
["                                   Höchst 1         Sven Hämmerle / Pascal Rüf"]
[]
["Junioren/2. Liga          Sulz 1              Vogt Moritz / Vogt Tobias"]
["              Sulz 2              Hron Jonas / Frick Mario"]
["                                   Dornbirn 1       Simon und Benjamin Buchhäusl"]
["                                   Dornbirn 2       Tobias Gawlik / Robert Rutkowski"]
[]
["Erste Liga                   Dornbirn 1       Martin Lingg / Jügen Türtscher"]
["                                   Dornbirn 2       Pascal Fontain / Patrick Köck"]
["                                   Sulz/Dornbirn  Kevin Bachmann / Stefan Feurstein"]
["                                   Höchst 1         Patrick Schnetzer / Markus Bröll"]
["                                   Höchst 2         Simon König / Florian Fischer"]
["                                   Höchst 3         Fabian Bauer / Johannes Bauer"]

{"sheet":"gelb_rote Karten","index":7,"n_rows":2,"n_cols":1,"rows_kept":2,"cut":false,"hidden":false,"merged":[]}
[]
["Gelb/rote Karten LM "]